fUSD/lending_fUSD_20240629
["ID","MTS","AMOUNT","RATE_DAILY","PERIOD"]
[330649045,1719686855936,625.50090201,0.00012314,2]
[330649046,1719686882895,190.25389119,0.00012314,2]
[330649047,1719686889286,158.25040673,0.00012314,2]
[330649048,1719686890070,424.02,0.00010861,2]
[330649049,1719686896113,167.79,0.000102,2]
[330649064,1719686956227,5425.59753009,0.00012314,2]
[330649065,1719686956264,1476.03593694,0.00012314,2]
[330649085,1719687031859,-444.50127724,0.00012669,2]
[330649086,1719687031904,-108.49872276,0.00012669,2]
[330649088,1719687031914,-300.0,0.00012669,2]
[330649090,1719687031924,-4210.99305564,0.0001267,2]
[330649092,1719687032152,-19689.00694436,0.0001267,2]
[330649093,1719687032161,-250.0,0.0001267,2]
[330649094,1719687032173,-169.96,0.00012767,2]
[330649095,1719687032182,-150.0,0.00012822,2]
[330649096,1719687032192,-63777.0,0.0001298,2]
[330649097,1719687032202,-424.02,0.00013125,2]
[330649098,1719687032211,-8202.05,0.00013128,2]
[330649099,1719687032221,-240.38467831,0.0001317,2]
[330649100,1719687032230,-150.0,0.0001317,2]
[330649101,1719687032239,-981.86,0.00013171,2]
[330649102,1719687032249,-499.99,0.00013171,2]
[330649103,1719687032261,-80860.87551935,0.00013171,2]
[330649104,1719687032272,-188.85,0.00013366,2]
[330649105,1719687032281,-346.03148912,0.00013516,2]
[330649106,1719687032291,-625.50090201,0.00013516,2]
[330649107,1719687032302,-625.50090201,0.00013516,2]
[330649108,1719687032317,-254.85349537,0.00013574,2]
[330649109,1719687032326,-150.45,0.00013616,2]
[330649110,1719687032338,-193.41797284,0.00013687,2]
[330649111,1719687032349,-355.25209393,0.00013687,2]
[330649112,1719687032359,-1838.7809,0.00013688,2]
[330649113,1719687032368,-497.8815,0.00013688,2]
[330649114,1719687032377,-30037.0164,0.00013688,2]
[330649115,1719687032387,-510.7171,0.0001369,2]
[330649116,1719687032396,-182.82,0.00013699,2]
[330649117,1719687032405,-150.99,0.00013699,2]
[330649118,1719687032415,-167.08,0.00013699,2]
[330649119,1719687032424,-164.15,0.00013699,2]
[330649120,1719687032434,-198.19,0.00013699,2]
[330649121,1719687032443,-384.77028012,0.00013714,2]
[330649122,1719687032453,-1629.18350688,0.00013736,2]
[330649123,1719687032462,-5928.9644,0.0001376,2]
[330649124,1719687032472,-500.0,0.00013782,2]
[330649125,1719687032481,-182.04870981,0.00013782,2]
[330649126,1719687032491,-1000.0,0.00013784,2]
[330649127,1719687032501,-2492.16,0.00013786,3]
[330649128,1719687032510,-2413.86,0.00013786,3]
[330649129,1719687032521,-1081.58,0.00013786,3]
[330649130,1719687032531,-4093.74,0.00013786,3]
[330649131,1719687032541,-2458.95,0.00013786,3]
[330649132,1719687032551,-3427.7,0.00013786,3]
[330649133,1719687032562,-2563.47,0.00013786,3]
[330649134,1719687032571,-535.85,0.00013786,3]
[330649135,1719687032580,-2356.41,0.00013786,3]
[330649136,1719687032589,-2484.28,0.00013786,3]
[330649137,1719687032599,-7755.78,0.00013786,3]
[330649138,1719687032608,-4333.42,0.00013786,3]
[330649139,1719687032618,-1606.45,0.00013786,3]
[330649140,1719687032627,-2518.93,0.00013786,3]
[330649141,1719687032636,-1381.3,0.00013786,3]
[330649142,1719687032647,-823.16,0.00013787,3]
[330649143,1719687032657,-787.48,0.00013787,3]
[330649144,1719687032668,-578.49,0.00013787,3]
[330649145,1719687032678,-1485.35,0.00013787,3]
[330649146,1719687032687,-500.0,0.00013787,3]
[330649147,1719687032696,-500.0,0.00013787,3]
[330649148,1719687032705,-946.25,0.00013787,3]
[330649149,1719687032715,-654.99,0.00013787,3]
[330649150,1719687032724,-500.0,0.00013787,3]
[330649151,1719687032733,-500.0,0.00013787,3]
[330649152,1719687032742,-835.21,0.00013787,3]
[330649153,1719687032751,-1077.69,0.00013787,3]
[330649154,1719687032760,-509.52,0.00013787,3]
[330649155,1719687032770,-2239.88,0.00013787,3]
[330649156,1719687032780,-500.0,0.00013787,3]
[330649157,1719687032790,-500.0,0.00013787,3]
[330649158,1719687032800,-5202.89,0.00013787,3]
[330649159,1719687032811,-500.0,0.00013787,3]
[330649160,1719687032820,-500.0,0.00013787,3]
[330649161,1719687032830,-500.0,0.00013787,3]
[330649162,1719687032840,-500.0,0.00013787,3]
[330649163,1719687032849,-4248.8,0.00013787,3]
[330649164,1719687032859,-827.03,0.00013787,3]
[330649165,1719687032868,-500.0,0.00013787,3]
[330649166,1719687032878,-500.0,0.00013787,3]
[330649167,1719687032888,-500.0,0.00013787,3]
[330649168,1719687032898,-4346.38,0.00013787,3]
[330649169,1719687032908,-844.79,0.00013787,3]
[330649170,1719687032917,-10611.11,0.00013787,3]
[330649171,1719687032927,-500.0,0.00013787,3]
[330649172,1719687032936,-1086.36,0.00013787,3]
[330649173,1719687032946,-718.86,0.00013787,3]
[330649174,1719687032956,-500.0,0.00013787,3]
[330649175,1719687032966,-1002.42,0.00013787,3]
[330649176,1719687032976,-500.0,0.00013787,3]
[330649177,1719687032985,-500.0,0.00013787,3]
[330649178,1719687032995,-21600.5,0.00013787,3]
[330649179,1719687033006,-500.0,0.00013787,3]
[330649180,1719687033015,-500.0,0.00013787,3]
[330649181,1719687033027,-500.0,0.00013787,3]
[330649182,1719687033036,-500.0,0.00013787,3]
[330649183,1719687033046,-500.0,0.00013787,3]
[330649184,1719687033056,-500.0,0.00013787,3]
[330649185,1719687033065,-1066.78,0.00013787,3]
[330649186,1719687033075,-3291.26,0.00013787,3]
[330649187,1719687033084,-679.84,0.00013787,3]
[330649188,1719687033094,-500.0,0.00013787,3]
[330649189,1719687033104,-535.12956221,0.00013787,3]
[330649190,1719687033114,-500.0,0.00013787,3]
[330649191,1719687033123,-5690.47,0.00013787,3]
[330649192,1719687033133,-500.0,0.00013787,3]
[330649193,1719687033143,-500.0,0.00013787,3]
[330649194,1719687033153,-500.0,0.00013787,3]
[330649195,1719687033163,-500.0,0.00013787,3]
[330649196,1719687033172,-818.43,0.00013787,3]
[330649197,1719687033182,-500.0,0.00013787,3]
[330649198,1719687033192,-500.0,0.00013787,3]
[330649199,1719687033201,-4787.97,0.00013787,3]
[330649200,1719687033211,-626.67,0.00013787,3]
[330649201,1719687033220,-500.0,0.00013787,3]
[330649202,1719687033230,-500.0,0.00013787,3]
[330649203,1719687033240,-396.12051711,0.00013787,3]
[330649204,1719687033555,-103.87948289,0.00013787,3]
[330649205,1719687033565,-4881.06491005,0.00013787,3]
[330649206,1719687033579,-411.96282194,0.00013787,3]
[330649207,1719687033591,-969.45652537,0.00013787,3]
[330649208,1719687033604,-209.47574264,0.00013787,3]
[330649209,1719687033613,-1207.30773199,0.00013787,3]
[330649210,1719687033625,-3735.73226801,0.00013787,3]
[330649211,1719687033635,-500.0,0.00013787,3]
[330649212,1719687033644,-500.0,0.00013787,3]
[330649213,1719687033654,-500.0,0.00013787,3]
[330649214,1719687033664,-500.0,0.00013787,3]
[330649215,1719687033674,-500.0,0.00013787,3]
[330649216,1719687033683,-419.26773199,0.00013787,3]
[330649324,1719687043095,-1850.53,0.00013786,3]
[330649326,1719687043104,-786.36822524,0.00013786,3]
[330649328,1719687043116,-5065.51177476,0.00013786,3]
[330649330,1719687043126,-4997.34226801,0.00013787,3]
[330649332,1719687043135,-500.0,0.00013787,3]
[330649334,1719687043145,-509.62,0.00013787,3]
[330649336,1719687043155,-500.0,0.00013787,3]
[330649338,1719687043165,-1194.26,0.00013787,3]
[330649339,1719687043174,-2447.15,0.00013787,3]
[330649340,1719687043184,-709.57,0.00013787,3]
[330649341,1719687043193,-1505.8,0.00013787,3]
[330649342,1719687043204,-500.0,0.00013787,3]
[330649343,1719687043213,-500.0,0.00013787,3]
[330649344,1719687043223,-500.0,0.00013787,3]
[330649345,1719687043233,-500.0,0.00013787,3]
[330649346,1719687043243,-4428.19,0.00013787,3]
[330649347,1719687043252,-2197.84,0.00013787,3]
[330649348,1719687043265,-1216.96,0.00013787,3]
[330649349,1719687043277,-3321.16,0.00013787,3]
[330649350,1719687043287,-500.0,0.00013787,3]
[330649351,1719687043296,-500.0,0.00013787,3]
[330649352,1719687043308,-500.0,0.00013787,3]
[330649353,1719687043319,-500.0,0.00013787,3]
[330649354,1719687043329,-1124.75,0.00013787,3]
[330649355,1719687043338,-4294.6,0.00013787,3]
[330649356,1719687043349,-634.53,0.00013787,3]
[330649357,1719687043360,-500.0,0.00013787,3]
[330649358,1719687043370,-1066.53,0.00013787,3]
[330649359,1719687043380,-500.0,0.00013787,3]
[330649360,1719687043389,-500.0,0.00013787,3]
[330649361,1719687043399,-516.45,0.00013787,3]
[330649362,1719687043410,-4129.77,0.00013787,3]
[330649363,1719687043420,-500.0,0.00013787,3]
[330649364,1719687043431,-27772.4259,0.00013788,2]
[330649365,1719687043440,-1254.7553,0.00013788,2]
[330649366,1719687043450,-4050.7381,0.00013788,2]
[330649367,1719687043459,-15389.3223,0.00013788,2]
[330649368,1719687043469,-14027.78986996,0.0001379,2]
[330649369,1719687043479,-14027.78986989,0.0001379,2]
[330649370,1719687043489,-14027.78986989,0.0001379,2]
[330649371,1719687043498,-355.25209386,0.00013797,2]
[330649372,1719687043507,-1720.21727171,0.00013799,2]
[330649373,1719687043517,-14027.78986989,0.00013837,2]
[330649374,1719687043526,-150.0,0.00013853,2]
[330649375,1719687043536,-619.51551,0.0001386,2]
[330649376,1719687043546,-285.75148297,0.00013866,2]
[330649377,1719687043556,-179.98125638,0.0001387,2]
[330649378,1719687043566,-150.0,0.00013877,2]
[330649379,1719687043576,-983.88,0.00013879,3]
[330649380,1719687043586,-2414.33,0.00013879,3]
[330649381,1719687043595,-716.24,0.00013879,3]
[330649382,1719687043605,-1412.44,0.00013879,3]
[330649383,1719687043614,-2098.98,0.00013879,3]
[330649384,1719687043623,-506.48,0.00013879,3]
[330649385,1719687043633,-1478.55,0.00013879,3]
[330649386,1719687043642,-1293.31,0.00013879,3]
[330649387,1719687043652,-1042.29,0.00013879,3]
[330649388,1719687043662,-1481.39,0.00013879,3]
[330649389,1719687043671,-500.0,0.00013879,3]
[330649390,1719687043681,-834.32,0.00013879,3]
[330649391,1719687043691,-2168.27,0.00013879,3]
[330649392,1719687043700,-2249.41,0.00013879,3]
[330649393,1719687043710,-500.0,0.00013879,3]
[330649394,1719687043720,-517.17,0.00013879,3]
[330649395,1719687043729,-891.82,0.00013879,3]
[330649396,1719687043739,-1267.97,0.00013879,3]
[330649397,1719687043749,-1081.51,0.00013879,3]
[330649398,1719687043758,-1001.9,0.00013879,3]
[330649399,1719687043768,-1205.28,0.00013879,3]
[330649400,1719687043778,-500.0,0.00013879,3]
[330649401,1719687043788,-500.0,0.00013879,3]
[330649402,1719687043798,-774.89,0.00013879,3]
[330649403,1719687043807,-500.0,0.00013879,3]
[330649405,1719687043818,-917.8,0.00013879,3]
[330649407,1719687043828,-500.0,0.00013879,3]
[330649409,1719687043838,-1984.36,0.00013879,3]
[330649410,1719687043847,-1072.18,0.00013879,3]
[330649411,1719687043857,-699.5,0.00013879,3]
[330649412,1719687043866,-500.0,0.00013879,3]
[330649413,1719687043876,-895.9,0.00013879,3]
[330649414,1719687043886,-2212.66,0.00013879,3]
[330649415,1719687043896,-718.28,0.00013879,3]
[330649416,1719687043905,-500.0,0.00013879,3]
[330649417,1719687043915,-2423.58,0.00013879,3]
[330649418,1719687043924,-1732.57,0.00013879,3]
[330649419,1719687043936,-500.0,0.00013879,3]
[330649420,1719687043946,-868.81,0.0001388,3]
[330649421,1719687043956,-1387.52,0.0001388,3]
[330649422,1719687043970,-866.72,0.0001388,3]
[330649423,1719687043981,-1293.03,0.0001388,3]
[330649424,1719687043992,-1191.12,0.0001388,3]
[330649425,1719687044002,-2197.74,0.0001388,3]
[330649426,1719687044012,-2215.43,0.0001388,3]
[330649427,1719687044021,-2290.92,0.0001388,3]
[330649428,1719687044031,-656.78,0.0001388,3]
[330649429,1719687044041,-2668.41,0.0001388,3]
[330649430,1719687044051,-500.0,0.0001388,3]
[330649431,1719687044060,-1702.87,0.0001388,3]
[330649432,1719687044070,-1962.32,0.0001388,3]
[330649433,1719687044080,-500.0,0.0001388,3]
[330649434,1719687044090,-500.0,0.0001388,3]
[330649435,1719687044100,-1049.25,0.0001388,3]
[330649436,1719687044109,-1679.94,0.0001388,3]
[330649437,1719687044119,-500.0,0.0001388,3]
[330649438,1719687044129,-1610.86,0.0001388,3]
[330649439,1719687044139,-500.0,0.0001388,3]
[330649440,1719687044148,-1761.35,0.0001388,3]
[330649441,1719687044157,-2188.23,0.0001388,3]
[330649442,1719687044167,-501.69,0.0001388,3]
[330649443,1719687044176,-529.12,0.0001388,3]
[330649444,1719687044186,-500.0,0.0001388,3]
[330649445,1719687044195,-520.35,0.0001388,3]
[330649446,1719687044204,-46986.73,0.0001388,3]
[330649447,1719687044214,-1844.88,0.0001388,3]
[330649448,1719687044224,-7929.21,0.0001388,3]
[330649449,1719687044233,-1649.35,0.0001388,3]
[330649450,1719687044242,-5547.35,0.0001388,3]
[330649451,1719687044251,-500.0,0.0001388,3]
[330649452,1719687044264,-1873.69,0.0001388,3]
[330649453,1719687044275,-1627.05,0.0001388,3]
[330649454,1719687044284,-1942.5,0.0001388,3]
[330649455,1719687044295,-379.54339704,0.0001388,3]
[330649456,1719687044306,-500.0,0.0001388,3]
[330649457,1719687044316,-925.36,0.0001388,3]
[330649458,1719687044326,-4754.68,0.0001388,3]
[330649459,1719687044335,-1326.47,0.0001388,3]
[330649460,1719687044349,-1031.01,0.0001388,3]
[330649461,1719687044359,-921.39,0.0001388,3]
[330649462,1719687044368,-1345.31,0.0001388,3]
[330649463,1719687044378,-3275.67,0.0001388,3]
[330649464,1719687044387,-6218.32,0.0001388,3]
[330649465,1719687044396,-1176.43,0.0001388,3]
[330649466,1719687044406,-898.12,0.0001388,3]
[330649467,1719687044415,-3384.27,0.0001388,3]
[330649468,1719687044424,-500.0,0.0001388,3]
[330649469,1719687044434,-2332.82,0.0001388,3]
[330649470,1719687044443,-596.48,0.0001388,3]
[330649471,1719687044452,-3106.14,0.0001388,3]
[330649472,1719687044462,-716.02,0.0001388,3]
[330649473,1719687044472,-1721.94,0.0001388,3]
[330649474,1719687044481,-500.0,0.00013881,3]
[330649475,1719687044491,-1488.35,0.00013881,3]
[330649476,1719687044501,-671.13,0.00013881,3]
[330649477,1719687044511,-500.0,0.00013881,3]
[330649478,1719687044520,-500.0,0.00013881,3]
[330649479,1719687044530,-924.44,0.00013881,3]
[330649480,1719687044539,-500.0,0.00013881,3]
[330649481,1719687044548,-500.0,0.00013881,3]
[330649482,1719687044558,-587.95,0.00013881,3]
[330649483,1719687044569,-503.14,0.00013881,3]
[330649484,1719687044579,-1251.51,0.00013881,3]
[330649485,1719687044588,-1414.01,0.00013881,3]
[330649486,1719687044597,-500.0,0.00013881,3]
[330649487,1719687044607,-500.0,0.00013881,3]
[330649488,1719687044616,-500.0,0.00013881,3]
[330649489,1719687044626,-1116.87,0.00013881,3]
[330649490,1719687044635,-500.0,0.00013881,3]
[330649491,1719687044644,-500.0,0.00013881,3]
[330649492,1719687044654,-846.18,0.00013881,3]
[330649493,1719687044663,-551.47,0.00013881,3]
[330649494,1719687044673,-500.0,0.00013881,3]
[330649495,1719687044682,-500.18,0.00013881,3]
[330649496,1719687044692,-500.0,0.00013881,3]
[330649497,1719687044701,-500.0,0.00013881,3]
[330649498,1719687044710,-552.05,0.00013881,3]
[330649499,1719687044720,-1250.24,0.00013881,3]
[330649500,1719687044729,-500.0,0.00013881,3]
[330649501,1719687044740,-582.45,0.00013881,3]
[330649502,1719687044750,-608.79,0.00013881,3]
[330649503,1719687044759,-500.0,0.00013881,3]
[330649504,1719687044769,-1274.04,0.00013881,3]
[330649505,1719687044778,-500.0,0.00013881,3]
[330649506,1719687044789,-651.61,0.00013881,3]
[330649507,1719687044799,-591.36,0.00013881,3]
[330649508,1719687044810,-500.0,0.00013881,3]
[330649509,1719687044821,-500.0,0.00013881,3]
[330649510,1719687044831,-500.0,0.00013881,3]
[330649511,1719687044842,-624.37,0.00013881,3]
[330649512,1719687044852,-500.0,0.00013881,3]
[330649513,1719687044862,-500.0,0.00013881,3]
[330649514,1719687044872,-668.59,0.00013881,3]
[330649515,1719687044881,-500.0,0.00013881,3]
[330649516,1719687044890,-1191.94,0.00013881,3]
[330649517,1719687044900,-930.1,0.00013881,3]
[330649518,1719687044909,-523.95,0.00013881,3]
[330649519,1719687044918,-500.0,0.00013881,3]
[330649520,1719687044928,-971.8,0.00013881,3]
[330649521,1719687044937,-500.0,0.00013881,3]
[330649522,1719687044946,-529.91,0.00013881,3]
[330649523,1719687044956,-500.0,0.00013881,3]
[330649524,1719687044965,-925.16,0.00013881,3]
[330649525,1719687044974,-500.0,0.00013881,3]
[330649526,1719687044984,-500.0,0.00013881,3]
[330649527,1719687044994,-500.0,0.00013881,3]
[330649528,1719687045003,-655.98,0.00013881,3]
[330649529,1719687045012,-500.0,0.00013881,3]
[330649530,1719687045022,-1090.08,0.00013881,3]
[330649531,1719687045031,-500.0,0.00013881,3]
[330649532,1719687045041,-500.0,0.00013881,3]
[330649533,1719687045050,-500.0,0.00013881,3]
[330649534,1719687045060,-1471.75,0.00013881,3]
[330649535,1719687045070,-1505.61,0.00013881,3]
[330649536,1719687045079,-500.0,0.00013881,3]
[330649537,1719687045090,-1014.45,0.00013881,3]
[330649538,1719687045100,-543.45,0.00013881,3]
[330649539,1719687045110,-500.0,0.00013881,3]
[330649540,1719687045119,-566.68,0.00013881,3]
[330649541,1719687045129,-500.0,0.00013881,3]
[330649542,1719687045139,-514.32,0.00013881,3]
[330649543,1719687045148,-1077.65,0.00013881,3]
[330649544,1719687045157,-500.0,0.00013881,3]
[330649545,1719687045167,-892.28,0.00013881,3]
[330649546,1719687045176,-500.0,0.00013881,3]
[330649547,1719687045187,-500.0,0.00013881,3]
[330649548,1719687045196,-656.87,0.00013881,3]
[330649549,1719687045206,-500.0,0.00013881,3]
[330649550,1719687045215,-602.8,0.00013881,3]
[330649551,1719687045225,-1080.09,0.00013881,3]
[330649552,1719687045235,-1397.33,0.00013881,3]
[330649553,1719687045244,-1130.96,0.00013881,3]
[330649554,1719687045254,-885.84,0.00013881,3]
[330649555,1719687045266,-1064.18,0.00013881,3]
[330649556,1719687045276,-500.0,0.00013881,3]
[330649557,1719687045286,-1443.84,0.00013881,3]
[330649558,1719687045295,-500.0,0.00013881,3]
[330649559,1719687045307,-2363.89,0.00013881,3]
[330649560,1719687045319,-500.0,0.00013881,3]
[330649561,1719687045329,-500.0,0.00013881,3]
[330649562,1719687045338,-500.0,0.00013881,3]
[330649563,1719687045349,-500.0,0.00013881,3]
[330649564,1719687045360,-500.0,0.00013881,3]
[330649565,1719687045369,-500.0,0.00013881,3]
[330649566,1719687045378,-500.0,0.00013881,3]
[330649567,1719687045388,-1375.11,0.00013881,3]
[330649568,1719687045398,-1065.73,0.00013881,3]
[330649569,1719687045407,-1581.15,0.00013881,3]
[330649570,1719687045416,-500.0,0.00013881,3]
[330649571,1719687045426,-500.0,0.00013881,3]
[330649572,1719687045435,-500.0,0.00013881,3]
[330649573,1719687045445,-1956.24,0.00013881,3]
[330649574,1719687045455,-500.0,0.00013881,2]
[330649575,1719687045464,-715.37,0.00013881,3]
[330649576,1719687045474,-912.53,0.00013881,3]
[330649577,1719687045484,-500.0,0.00013881,3]
[330649578,1719687045493,-500.0,0.00013881,3]
[330649579,1719687045503,-528.18299409,0.00013881,3]
[330649580,1719687045512,-1381.64,0.00013881,3]
[330649581,1719687045521,-500.0,0.00013881,3]
[330649582,1719687045531,-774.46,0.00013881,3]
[330649583,1719687045540,-500.0,0.00013881,3]
[330649584,1719687045549,-838.93,0.00013881,3]
[330649585,1719687045558,-500.0,0.00013881,3]
[330649586,1719687045569,-500.66177449,0.00013881,3]
[330649587,1719687045578,-500.0,0.00013881,3]
[330649588,1719687045588,-1159.35,0.00013881,3]
[330649589,1719687045597,-500.0,0.00013881,3]
[330649590,1719687045607,-1000.24,0.00013881,3]
[330649591,1719687045616,-500.0,0.00013881,3]
[330649592,1719687045625,-1447.3,0.00013881,3]
[330649593,1719687045635,-779.94,0.00013881,3]
[330649594,1719687045644,-500.0,0.00013881,3]
[330649595,1719687045654,-1081.58,0.00013881,3]
[330649596,1719687045663,-518.24,0.00013881,3]
[330649597,1719687045673,-500.0,0.00013881,3]
[330649598,1719687045682,-522.33,0.00013881,3]
[330649599,1719687045691,-589.39072104,0.00013881,3]
[330649600,1719687045700,-2299.8,0.00013881,3]
[330649601,1719687045710,-500.0,0.00013881,3]
[330649603,1719687045719,-524.72,0.00013881,3]
[330649606,1719687045728,-500.0,0.00013881,3]
[330649608,1719687045738,-2715.72,0.00013881,3]
[330649610,1719687045748,-500.0,0.00013881,3]
[330649612,1719687045758,-500.0,0.00013881,3]
[330649614,1719687045767,-500.0,0.00013881,3]
[330649616,1719687045777,-500.0,0.00013881,3]
[330649618,1719687045786,-500.0,0.00013881,3]
[330649620,1719687045796,-500.0,0.00013881,3]
[330649622,1719687045805,-968.15,0.00013881,3]
[330649624,1719687045816,-500.0,0.00013881,3]
[330649626,1719687045825,-1084.63,0.00013881,3]
[330649628,1719687045835,-500.0,0.00013881,3]
[330649630,1719687045844,-1169.5,0.00013881,3]
[330649633,1719687045854,-1233.46,0.00013881,3]
[330649635,1719687045863,-500.0,0.00013881,3]
[330649636,1719687045873,-500.0,0.00013881,3]
[330649638,1719687045882,-500.0,0.00013881,3]
[330649640,1719687045891,-500.0,0.00013881,3]
[330649642,1719687045901,-500.0,0.00013881,3]
[330649644,1719687045910,-500.0,0.00013881,3]
[330649645,1719687045919,-595.47,0.00013881,3]
[330649646,1719687045928,-500.0,0.00013881,3]
[330649647,1719687045938,-500.0,0.00013881,3]
[330649648,1719687045947,-1465.97,0.00013881,3]
[330649649,1719687045957,-3640.36,0.00013881,3]
[330649650,1719687045967,-783.48,0.00013881,3]
[330649651,1719687045976,-500.0,0.00013881,3]
[330649652,1719687045986,-1215.31,0.00013881,3]
[330649653,1719687045996,-1933.1,0.00013881,3]
[330649654,1719687046006,-500.0,0.00013881,3]
[330649655,1719687046016,-500.0,0.00013881,3]
[330649656,1719687046025,-500.0,0.00013881,3]
[330649657,1719687046035,-663.85,0.00013881,3]
[330649658,1719687046044,-1978.4,0.00013881,3]
[330649659,1719687046054,-539.32,0.00013881,3]
[330649660,1719687046064,-651.99,0.00013881,3]
[330649661,1719687046073,-171.63155177,0.00013881,3]
[330649662,1719687046083,-500.0,0.00013881,3]
[330649663,1719687046092,-500.0,0.00013881,3]
[330649664,1719687046101,-500.0,0.00013881,3]
[330649665,1719687046113,-500.0,0.00013881,3]
[330649666,1719687046123,-500.0,0.00013881,3]
[330649667,1719687046132,-912.24,0.00013881,3]
[330649668,1719687046142,-615.45,0.00013881,3]
[330649669,1719687046152,-2575.49,0.00013881,3]
[330649670,1719687046161,-500.0,0.00013881,3]
[330649671,1719687046171,-500.0,0.00013881,3]
[330649672,1719687046180,-1682.89,0.00013881,3]
[330649673,1719687046189,-500.0,0.00013881,3]
[330649674,1719687046199,-500.0,0.00013881,3]
[330649675,1719687046209,-1956.02,0.00013881,3]
[330649676,1719687046218,-1099.96,0.00013881,3]
[330649677,1719687046227,-805.19,0.00013881,3]
[330649678,1719687046237,-1515.45,0.00013881,3]
[330649679,1719687046247,-1481.33,0.00013881,3]
[330649680,1719687046256,-500.0,0.00013881,3]
[330649681,1719687046270,-500.0,0.00013881,3]
[330649682,1719687046279,-500.0,0.00013881,3]
[330649683,1719687046289,-500.0,0.00013881,3]
[330649684,1719687046299,-1031.07,0.00013881,3]
[330649685,1719687046310,-1378.77,0.00013881,3]
[330649686,1719687046321,-679.86,0.00013881,3]
[330649687,1719687046330,-1193.56,0.00013881,3]
[330649688,1719687046340,-6960.42,0.00013881,3]
[330649689,1719687046350,-500.0,0.00013881,3]
[330649691,1719687046359,-2261.21,0.00013881,3]
[330649693,1719687046368,-500.0,0.00013881,3]
[330649695,1719687046378,-500.0,0.00013881,3]
[330649697,1719687046388,-500.0,0.00013881,3]
[330649699,1719687046397,-598.44,0.00013881,3]
[330649701,1719687046407,-301.99038492,0.00013881,3]
[330649703,1719687046416,-632.41,0.00013881,3]
[330649706,1719687046426,-1893.42,0.00013881,3]
[330649707,1719687046436,-910.94,0.00013881,3]
[330649708,1719687046445,-876.04,0.00013881,3]
[330649709,1719687046455,-500.0,0.00013881,3]
[330649710,1719687046464,-8910.77,0.00013881,3]
[330649711,1719687046473,-343.39160055,0.00013881,3]
[330649712,1719687046483,-500.0,0.00013881,3]
[330649713,1719687046492,-2162.42,0.00013881,3]
[330649714,1719687046502,-500.0,0.00013881,3]
[330649715,1719687046512,-500.0,0.00013881,3]
[330649716,1719687046521,-585.77,0.00013881,3]
[330649717,1719687046531,-1368.38,0.00013881,3]
[330649718,1719687046540,-500.0,0.00013881,3]
[330649719,1719687046549,-2773.97,0.00013881,3]
[330649720,1719687046560,-1349.42,0.00013881,3]
[330649721,1719687046571,-500.0,0.00013881,3]
[330649722,1719687046581,-588.39,0.00013881,3]
[330649723,1719687046591,-3242.79,0.00013881,3]
[330649724,1719687046600,-622.23,0.00013881,3]
[330649725,1719687046610,-949.77,0.00013881,3]
[330649726,1719687046619,-1833.13,0.00013881,3]
[330649727,1719687046629,-500.0,0.00013881,3]
[330649728,1719687046640,-554.88,0.00013881,3]